bitfinex/quotes_BTCUSD_20250110
["timestamp","ask_amount","ask_price","bid_price","bid_amount"]
[1736521976167,0.431726,92651.0,92616.0,0.06563108]
[1736521976369,0.10429976,92650.0,92620.0,0.12173084]
[1736521976583,0.0144,92649.0,92628.0,0.01743108]
[1736521976791,0.215906,92633.0,92628.0,0.01743108]
[1736521977034,0.215906,92633.0,92629.0,0.00146074]
[1736521977245,0.26589775,92640.0,92620.0,0.01743108]
[1736521977543,0.15,92648.0,92617.0,0.01743108]
[1736521977745,0.215933,92621.0,92616.0,0.01743108]
[1736521978285,0.0144,92631.0,92616.0,0.01743108]
[1736521978703,0.215933,92621.0,92620.0,0.00148216]
[1736521979104,0.215933,92621.0,92616.0,0.01743108]
[1736521979504,0.215926,92625.0,92616.0,0.01743108]
[1736521979879,0.215915,92629.0,92616.0,0.01743108]
[1736521979880,0.215926,92624.0,92616.0,0.01743108]
[1736521980090,0.26589775,92660.0,92628.0,0.01743108]
[1736521980293,0.26589775,92660.0,92600.0,0.26589775]
[1736521980294,0.215805,92676.0,92656.0,0.01743108]
[1736521980424,0.1,92700.0,92635.0,0.0481]
[1736521980425,0.215793,92682.0,92674.0,0.01743108]
[1736521980624,0.215793,92682.0,92657.0,0.10429976]
[1736521980625,0.215782,92686.0,92679.0,0.01743108]
[1736521980838,0.215782,92686.0,92681.0,0.01743108]
[1736521981059,0.215784,92685.0,92654.0,0.01743108]
[1736521981248,0.26589775,92670.0,92640.0,0.01743108]
[1736521981450,0.26589775,92650.0,92626.0,0.01743108]
[1736521981659,0.0144,92649.0,92625.0,0.01743108]
[1736521981921,0.215929,92623.0,92617.0,0.01743108]
[1736521982135,0.431859,92623.0,92617.0,0.01743108]
[1736521982380,0.431859,92623.0,92619.0,0.0010849]
[1736521982579,0.446259,92623.0,92619.0,0.0010849]
[1736521982694,0.215929,92623.0,92619.0,8.49e-05]
[1736521982899,0.431859,92623.0,92619.0,8.49e-05]
[1736521983099,0.173,92620.0,92619.0,0.0020849]
[1736521983313,0.27729976,92620.0,92619.0,0.0020849]
[1736521983708,0.27729976,92620.0,92619.0,9e-07]
[1736521983912,0.37125727,92620.0,92619.0,9e-07]
[1736521984342,0.36565037,92597.0,92596.0,9e-07]
[1736521984549,0.26589775,92606.0,92577.0,0.01551728]
[1736521984789,0.26589775,92606.0,92596.0,0.01551728]
[1736521984790,0.26589775,92600.0,92596.0,0.01551728]
[1736521984993,0.215985,92599.0,92589.0,0.01551728]
[1736521985189,0.26589775,92600.0,92577.0,0.01551728]
[1736521985516,0.216022,92583.0,92559.0,0.216078]
[1736521985672,0.26589775,92580.0,92572.0,0.01551728]
[1736521985871,0.216034,92578.0,92560.0,0.10578282]
[1736521986076,0.0144,92586.0,92579.0,0.01551728]
[1736521986280,0.216017,92585.0,92583.0,0.01551728]
[1736521986682,0.216017,92585.0,92553.0,0.36149]
[1736521986683,0.215954,92612.0,92587.0,0.01551728]
[1736521986891,0.26589775,92600.0,92599.0,0.01551728]
[1736521987092,0.26589775,92600.0,92590.0,0.01551728]
[1736521987308,0.26589775,92600.0,92597.0,0.01551728]
[1736521987524,0.26589775,92600.0,92591.0,0.0119817]
[1736521987525,0.48183375,92620.0,92615.0,0.01551728]
[1736521987736,0.26589775,92620.0,92612.0,0.01551728]
[1736521987949,0.215938,92619.0,92615.0,0.01551728]
[1736521988157,0.26589775,92622.0,92618.0,0.01551728]
[1736521988364,0.215933,92621.0,92618.0,0.01551728]
[1736521988786,0.26589775,92622.0,92594.0,0.0748]
[1736521988997,0.215976,92603.0,92594.0,0.17909976]
[1736521989236,0.26589775,92604.0,92594.0,0.17909976]
[1736521989452,0.15,92629.0,92612.0,0.01551728]
[1736521989663,0.215919,92627.0,92618.0,0.01551728]
[1736521989840,0.431863,92622.0,92618.0,0.01551728]
[1736521990101,0.01444,92630.0,92612.0,0.01551728]
[1736521990316,0.10429976,92629.0,92595.0,0.10429976]
[1736521990528,0.215957,92611.0,92595.0,0.10429976]
[1736521990734,0.01444,92630.0,92614.0,0.01551728]
[1736521990946,0.15,92635.0,92618.0,0.01551728]
[1736521991152,0.12108,92643.0,92638.0,0.01551728]
[1736521991403,0.11785176,92642.0,92609.0,0.01551728]
[1736521991608,0.11785176,92642.0,92615.0,0.01551728]
[1736521991609,0.023,92628.0,92615.0,0.01551728]
[1736521991816,0.023,92628.0,92598.0,0.01551728]
[1736521992009,0.26589775,92629.0,92592.0,0.0453]
[1736521992010,0.215983,92600.0,92592.0,0.0453]
[1736521992289,0.215963,92609.0,92594.0,0.19110976]
[1736521992492,0.215963,92609.0,92608.0,0.01551728]
[1736521992700,0.215973,92605.0,92600.0,0.01551728]
[1736521992821,0.01444,92616.0,92610.0,0.01551728]
[1736521992822,0.215957,92611.0,92610.0,0.01551728]
[1736521993030,0.01444,92616.0,92594.0,0.11630976]
[1736521993031,0.01444,92616.0,92612.0,0.01551728]
[1736521993302,0.001,92628.0,92627.0,0.01551728]
[1736521993640,0.001,92628.0,92627.0,0.33685991]
[1736521993846,0.001,92628.0,92627.0,0.18870751]
[1736521994052,0.001,92628.0,92627.0,0.15312363]
[1736521994252,0.001,92628.0,92627.0,0.04882387]
[1736521994576,0.10076516,92672.0,92627.0,0.04882387]
[1736521994577,0.01444,92670.0,92652.0,0.01051728]
[1736521994739,0.215752,92699.0,92675.0,0.01051728]
[1736521994940,0.10429976,92698.0,92675.0,0.01051728]
[1736521995138,0.01444,92699.0,92685.0,0.01051728]
[1736521995399,0.215777,92688.0,92686.0,0.00098358]
[1736521995565,0.0144,92700.0,92666.0,0.05007896]
[1736521995566,0.02197076,92701.0,92698.0,0.01051728]
[1736521995792,0.0144,92716.0,92699.0,0.01051728]
[1736521995946,0.0144,92716.0,92699.0,0.01120081]
[1736521995947,0.26589775,92710.0,92699.0,0.01120081]
[1736521996150,0.02518868,92716.0,92706.0,0.01041733]
[1736521996352,0.215707,92719.0,92716.0,0.01041733]
[1736521996556,0.215694,92724.0,92689.0,0.1]
[1736521996847,0.1,92588.0,92577.0,0.26705088]
[1736521997066,0.023,92586.0,92577.0,0.26705088]
[1736521997274,0.00107863,92595.0,92577.0,0.26705088]
[1736521997521,0.00107863,92595.0,92565.0,0.0492]
[1736521997522,0.00107863,92595.0,92581.0,8.53e-05]
[1736521997867,0.1,92596.0,92581.0,8.53e-05]
[1736521998071,0.215994,92595.0,92582.0,0.10429976]
[1736521998283,0.215977,92603.0,92582.0,0.10429976]
[1736521998499,0.1,92599.0,92583.0,0.0115185]
[1736521998712,0.1,92588.0,92581.0,8.53e-05]
[1736521998923,0.1,92582.0,92581.0,8.53e-05]
[1736521999141,0.30429976,92582.0,92581.0,8.53e-05]
[1736521999355,0.216008,92589.0,92581.0,8.53e-05]
[1736521999563,0.21598,92601.0,92581.0,8.53e-05]
[1736521999789,0.21598,92601.0,92582.0,0.10429976]
[1736522000019,0.21598,92601.0,92583.0,0.01043851]
[1736522000243,0.21597,92606.0,92584.0,0.10537971]
[1736522000456,0.1,92602.0,92584.0,0.10537971]
[1736522000663,0.1,92602.0,92584.0,0.10429976]
[1736522001524,0.023,92588.0,92581.0,8.53e-05]
[1736522001728,0.1,92589.0,92581.0,8.53e-05]
[1736522001729,0.2,92582.0,92581.0,8.53e-05]
[1736522001945,0.22407863,92582.0,92581.0,8.53e-05]
[1736522002177,0.373,92582.0,92581.0,8.53e-05]
[1736522002384,0.373,92582.0,92539.0,0.124]
[1736522002385,0.216078,92559.0,92539.0,0.124]
[1736522002595,0.439078,92559.0,92539.0,0.124]
[1736522003012,0.54337776,92559.0,92519.0,0.0797]
[1736522003228,0.7514556,92559.0,92519.0,0.0797]
[1736522003441,0.7514556,92559.0,92518.0,7e-05]
[1736522003442,0.416118,92542.0,92518.0,7e-05]
[1736522003891,0.5784956,92542.0,92518.0,7e-05]
[1736522004307,0.211118,92542.0,92518.0,7e-05]
[1736522004767,0.334118,92542.0,92518.0,7e-05]
[1736522005025,0.335118,92542.0,92518.0,7e-05]
[1736522005232,0.335118,92542.0,92518.0,0.216242]
[1736522005233,0.001,92542.0,92518.0,0.216242]
[1736522005436,0.216105,92548.0,92526.0,0.00116568]
[1736522005641,0.216105,92548.0,92541.0,1.5140908]
[1736522005852,0.001,92542.0,92541.0,1.5140908]
[1736522007628,0.216085,92556.0,92541.0,0.0140908]
[1736522007827,0.1,92565.0,92541.0,0.11839056]
[1736522008034,0.216062,92566.0,92551.0,1.5]
[1736522008245,0.216074,92561.0,92542.0,0.216118]
[1736522008481,0.316065,92565.0,92551.0,0.10429976]
[1736522008708,0.216051,92571.0,92552.0,1.60429976]
[1736522009144,0.00107863,92570.0,92552.0,1.60429976]
[1736522009355,0.316108,92546.0,92541.0,0.0140908]
[1736522009562,0.223,92542.0,92541.0,0.0140908]
[1736522009773,0.47729976,92542.0,92541.0,0.0140908]
[1736522009993,0.339118,92542.0,92541.0,0.0140908]
[1736522010466,0.316118,92542.0,92541.0,0.0140908]
[1736522011370,0.73021946,92542.0,92541.0,0.0140908]
[1736522011594,0.316153,92527.0,92525.0,8.51e-05]
[1736522011814,0.69345276,92527.0,92525.0,8.51e-05]
[1736522012023,0.35,92526.0,92525.0,8.51e-05]
[1736522012237,0.47729976,92526.0,92525.0,8.51e-05]
[1736522012462,0.49173976,92526.0,92525.0,8.51e-05]
[1736522012900,0.023,92526.0,92525.0,8.51e-05]
[1736522013112,0.10107863,92526.0,92525.0,8.51e-05]
[1736522013329,0.22407863,92526.0,92525.0,8.51e-05]
[1736522013552,0.47729976,92526.0,92525.0,1e-07]
[1736522013729,0.55221403,92526.0,92525.0,1e-07]
[1736522014192,0.55321403,92526.0,92525.0,1e-07]
[1736522014403,0.55321403,92526.0,92510.0,3e-07]
[1736522014404,0.35,92511.0,92510.0,3e-07]
[1736522014620,0.566213,92501.0,92500.0,0.04768527]
[1736522014838,0.70795276,92501.0,92500.0,0.04768527]
[1736522015090,0.77207147,92501.0,92500.0,0.04768527]
[1736522015322,0.69351276,92501.0,92500.0,0.04768527]
[1736522015536,0.1,92480.0,92434.0,0.21637]
[1736522015753,0.21623,92494.0,92436.0,0.10429976]
[1736522015754,0.1,92476.0,92436.0,0.10429976]
[1736522015980,0.216295,92467.0,92446.0,0.216342]
[1736522016187,0.21762589,92475.0,92437.0,0.00054373]
[1736522016188,0.1,92475.0,92447.0,0.10429976]
[1736522016405,0.1,92487.0,92447.0,0.11358629]
[1736522016647,0.1,92494.0,92456.0,0.10429976]
[1736522016862,0.1,92452.0,92447.0,0.00874272]
[1736522017077,0.09934158,92451.0,92450.0,9.397e-05]
[1736522017290,0.30499351,92451.0,92450.0,9.397e-05]
[1736522017501,0.19934158,92451.0,92450.0,9.397e-05]
[1736522017717,0.32799362,92451.0,92450.0,9.397e-05]
[1736522017924,0.32664134,92451.0,92450.0,9.397e-05]
[1736522018132,0.216365,92436.0,92435.0,4e-05]
[1736522018349,0.216361,92438.0,92435.0,4e-05]
[1736522018569,0.216365,92436.0,92435.0,4e-05]
[1736522018779,0.239365,92436.0,92435.0,4e-05]
[1736522019203,0.216365,92436.0,92435.0,4e-05]
[1736522019637,0.54291237,92436.0,92435.0,4e-05]
[1736522019854,0.43861261,92436.0,92435.0,4e-05]
[1736522020079,0.216365,92436.0,92435.0,4e-05]
[1736522020303,0.1,92447.0,92435.0,4e-05]
[1736522020596,0.21765221,92464.0,92446.0,0.21634]
[1736522020817,0.19924761,92467.0,92446.0,1.5]
[1736522021039,0.09924761,92488.0,92449.0,0.10429976]
[1736522021247,0.0771,92511.0,92449.0,0.10429976]
[1736522021248,0.216235,92492.0,92459.0,0.10429976]
[1736522021460,0.09924761,92467.0,92447.0,0.00874272]
[1736522021674,0.0475,92490.0,92450.0,0.00872853]
[1736522021675,0.1,92451.0,92450.0,0.00872853]
[1736522021882,0.00135224,92458.0,92435.0,4e-05]
[1736522022096,0.21633,92452.0,92436.0,0.10429976]
[1736522022315,0.00018294,92451.0,92435.0,4e-05]
[1736522022528,0.216365,92436.0,92435.0,4e-05]
[1736522024723,0.44366476,92436.0,92435.0,4e-05]
[1736522024921,0.43861261,92436.0,92435.0,4e-05]
[1736522025310,0.31561261,92436.0,92435.0,4e-05]
[1736522025538,0.00018294,92451.0,92426.0,0.00054458]
[1736522025849,0.00018294,92451.0,92427.0,0.10429976]
[1736522026010,0.216335,92449.0,92428.0,0.01042998]
[1736522026185,0.216335,92449.0,92433.0,0.21637]
[1736522026366,0.00018294,92451.0,92435.0,0.216368]
[1736522026787,0.00018294,92451.0,92428.0,0.01042998]
[1736522026788,0.00018294,92451.0,92436.0,0.10429976]
[1736522026994,0.00018294,92451.0,92428.0,0.01042998]
[1736522026995,0.00018294,92451.0,92448.0,0.216337]
[1736522027202,0.00018294,92451.0,92449.0,0.11947467]
[1736522027594,0.00018294,92451.0,92450.0,0.32117636]
[1736522027835,0.216218,92500.0,92460.0,0.26702126]
[1736522028041,0.216209,92503.0,92465.0,0.10505215]
[1736522028285,0.21622,92499.0,92466.0,0.10429976]
[1736522028489,0.216197,92508.0,92460.0,0.07261622]
[1736522028490,0.00135148,92498.0,92467.0,0.11472974]
[1736522028693,0.1,92503.0,92467.0,0.11472974]
[1736522028896,0.1,92498.0,92475.0,0.216273]
[1736522029070,0.0148,92529.0,92467.0,0.11472974]
[1736522029071,0.216214,92501.0,92479.0,0.216264]
[1736522029302,0.1,92508.0,92493.0,0.21623]
[1736522029527,0.1,92514.0,92494.0,0.01517491]
[1736522029728,0.04984462,92510.0,92468.0,0.0483]
[1736522029853,0.00135147,92509.0,92469.0,0.10538095]
[1736522030058,0.04984462,92516.0,92476.0,0.10429976]
[1736522030284,0.00135127,92515.0,92487.0,0.216246]
[1736522030506,0.04984462,92516.0,92488.0,0.10538086]
[1736522030763,0.216218,92500.0,92475.0,0.216274]
[1736522030902,0.10565113,92515.0,92476.0,0.10429976]
[1736522030903,0.04984462,92497.0,92476.0,0.10429976]
[1736522031133,0.216227,92496.0,92477.0,0.216269]
[1736522031347,0.04984462,92506.0,92478.0,0.10429976]
[1736522031587,0.216273,92476.0,92431.0,0.1]
[1736522031828,0.239225,92496.0,92440.0,0.216355]
[1736522031829,0.216315,92458.0,92440.0,0.216355]
[1736522032009,0.216308,92461.0,92441.0,0.32065176]
[1736522032208,0.02170335,92481.0,92442.0,0.00108165]
[1736522032209,0.04984462,92481.0,92442.0,0.00108165]
[1736522032406,0.0148,92486.0,92443.0,0.10429976]
[1736522032407,0.023,92474.0,92443.0,0.10429976]
[1736522032633,0.216297,92466.0,92448.0,0.216335]
[1736522032990,0.023,92459.0,92412.0,0.0808]
[1736522033203,0.216361,92438.0,92419.0,0.216405]
[1736522033411,0.023,92452.0,92420.0,0.10429976]
[1736522033656,0.1,92411.0,92400.0,0.00264]
[1736522033926,0.216445,92402.0,92400.0,0.00264]
[1736522034135,0.26628962,92402.0,92400.0,0.00264]
[1736522034968,0.28728962,92402.0,92400.0,0.00264]
[1736522035171,0.58986244,92402.0,92400.0,0.00264]
[1736522035392,0.54158938,92402.0,92400.0,0.00264]
[1736522035599,0.19984462,92401.0,92400.0,0.00212167]
[1736522035875,0.3054975,92401.0,92400.0,0.00212167]
[1736522036082,0.15414438,92401.0,92400.0,0.00212167]
[1736522036291,0.36659496,92401.0,92400.0,6.7e-07]
[1736522036467,0.36524186,92401.0,92400.0,6.7e-07]
[1736522036674,0.32714438,92401.0,92400.0,6.7e-07]
[1736522037089,0.32714438,92401.0,92385.0,1e-07]
[1736522037090,0.46462762,92386.0,92385.0,1e-07]
[1736522037299,0.43935562,92374.0,92363.0,8.52e-05]
[1736522037506,0.40845538,92374.0,92363.0,8.52e-05]
[1736522037930,0.62095072,92374.0,92363.0,8.52e-05]
[1736522038133,0.55845538,92374.0,92363.0,8.52e-05]
[1736522038334,0.40845538,92374.0,92363.0,8.52e-05]
[1736522038544,0.37065538,92374.0,92347.0,0.00056378]
[1736522038743,0.216511,92374.0,92353.0,0.216559]
[1736522039063,0.21622804,92374.0,92353.0,0.216559]
[1736522039427,0.21622804,92374.0,92358.0,0.216547]
[1736522039831,0.216484,92386.0,92364.0,0.216534]
[1736522040031,0.0148,92399.0,92347.0,0.00056378]
[1736522040032,0.04984462,92374.0,92348.0,0.216571]
[1736522040233,0.216511,92374.0,92348.0,0.216571]
[1736522040423,0.216511,92374.0,92354.0,0.2306468]
[1736522040880,0.15,92391.0,92359.0,0.216544]
[1736522040881,0.216471,92391.0,92359.0,0.216544]
[1736522041023,0.10565293,92390.0,92354.0,0.0140908]
[1736522041400,0.216498,92380.0,92361.0,0.21654]
[1736522041590,0.02371649,92407.0,92374.0,0.216511]
[1736522041798,0.216443,92403.0,92386.0,0.216482]
[1736522042028,0.04984462,92419.0,92386.0,0.10429976]
[1736522042237,0.04984462,92441.0,92413.0,0.216418]
[1736522042445,0.04984462,92432.0,92391.0,0.10429976]
[1736522042649,0.04984462,92432.0,92360.0,0.26702126]
[1736522042650,0.04984462,92423.0,92364.0,0.1]
[1736522042856,0.10565268,92422.0,92381.0,0.05015538]
[1736522043066,0.216366,92436.0,92390.0,0.05015538]
[1736522043067,0.216382,92429.0,92390.0,0.05015538]
[1736522043315,0.432694,92444.0,92402.0,0.05015538]
[1736522043584,0.432694,92444.0,92394.0,0.0787]
[1736522043585,0.04984462,92442.0,92394.0,0.0787]
[1736522043839,0.04984462,92440.0,92411.0,0.216422]
[1736522044091,0.05119719,92439.0,92394.0,0.0787]
[1736522044346,0.216391,92425.0,92405.0,0.216436]
[1736522044592,0.15414438,92438.0,92405.0,0.10429976]
[1736522044848,0.15414438,92438.0,92395.0,0.01249]
[1736522044849,0.216401,92421.0,92395.0,0.01249]
[1736522045106,0.10429976,92437.0,92406.0,0.216434]
[1736522045337,0.06960267,92454.0,92407.0,0.10429976]
[1736522045338,0.216381,92430.0,92407.0,0.10429976]
[1736522045552,0.00904522,92454.0,92409.0,0.10429976]
[1736522045780,0.00904522,92454.0,92422.0,0.10429976]
[1736522045781,0.00108073,92453.0,92422.0,0.10429976]
[1736522045986,0.2163,92465.0,92422.0,0.10429976]
[1736522045987,0.1,92481.0,92425.0,0.216391]
[1736522046192,0.10538049,92469.0,92440.0,0.216355]
[1736522046397,0.00078835,92469.0,92441.0,0.10429976]
[1736522046619,0.00920592,92470.0,92461.0,0.216306]
[1736522046822,0.00920592,92470.0,92462.0,0.10429976]
[1736522047039,0.000171,92488.0,92473.0,0.216278]
[1736522047241,0.000171,92488.0,92476.0,0.21627]
[1736522047242,0.00938545,92488.0,92476.0,0.21627]
[1736522047447,0.000171,92488.0,92476.0,0.10429976]
[1736522047662,0.000171,92488.0,92477.0,0.10429976]
[1736522047885,0.000171,92488.0,92484.0,0.216252]
[1736522048090,0.000171,92488.0,92485.0,0.10538082]
[1736522048328,0.000171,92488.0,92486.0,0.216248]
[1736522048544,0.000171,92488.0,92487.0,0.32054576]
[1736522048964,0.000171,92488.0,92487.0,0.41554576]
[1736522049187,0.000171,92488.0,92487.0,0.10429976]
[1736522049409,0.000171,92488.0,92458.0,0.02143209]
[1736522049629,0.000171,92488.0,92473.0,0.216278]
[1736522049847,0.000171,92488.0,92481.0,0.216258]
[1736522050064,0.000171,92488.0,92450.0,0.00923452]
[1736522050269,0.000171,92488.0,92430.0,0.26702126]
[1736522050270,0.000171,92488.0,92454.0,0.216323]
[1736522050406,0.000171,92488.0,92460.0,0.216307]
[1736522050614,0.000171,92488.0,92468.0,0.216289]
[1736522050823,0.000171,92488.0,92437.0,0.216362]
[1736522050824,0.000171,92488.0,92476.0,0.21627]
[1736522051060,0.000171,92488.0,92477.0,0.10429976]
[1736522051467,0.000171,92488.0,92485.0,0.21625]
[1736522051670,0.000171,92488.0,92487.0,0.216246]
[1736522051870,0.000171,92488.0,92487.0,0.32054576]
[1736522052070,0.21618,92516.0,92493.0,0.216231]
[1736522052269,0.216162,92523.0,92495.0,0.216225]
[1736522052475,0.21695335,92522.0,92501.0,0.216211]
[1736522052681,0.216165,92522.0,92502.0,0.10429976]
[1736522052887,0.00078835,92521.0,92502.0,0.10429976]
[1736522053101,0.0001712,92525.0,92503.0,0.00108096]
[1736522053312,0.0001712,92525.0,92523.0,0.216161]
[1736522053514,0.0001712,92525.0,92524.0,0.10538039]
[1736522053942,0.0001712,92525.0,92524.0,0.10429976]
[1736522055011,0.21616,92524.0,92481.0,0.1]
[1736522055226,0.216177,92517.0,92501.0,0.216213]
[1736522055424,0.216165,92522.0,92502.0,0.10429976]
[1736522055626,0.216195,92509.0,92491.0,0.216237]
[1736522055836,0.10429976,92521.0,92492.0,0.10429976]
[1736522056054,0.15,92507.0,92434.0,0.21637]
[1736522056294,0.179,92520.0,92453.0,0.10429976]
[1736522056295,0.216266,92479.0,92453.0,0.10429976]
[1736522056548,0.10429976,92506.0,92454.0,0.00108141]
[1736522056772,0.079,92520.0,92474.0,0.216275]
[1736522056773,0.01496,92510.0,92474.0,0.216275]
[1736522056923,0.216227,92496.0,92475.0,0.10429976]
[1736522057116,0.216212,92502.0,92475.0,0.10429976]
[1736522057117,0.26743004,92500.0,92475.0,0.10429976]
[1736522057416,0.26743004,92510.0,92476.0,0.01042998]
[1736522057667,0.216206,92505.0,92486.0,0.216246]
[1736522057907,0.216206,92505.0,92476.0,0.0115112]
[1736522057908,0.216197,92509.0,92488.0,0.216244]
[1736522058155,0.216174,92518.0,92494.0,0.216228]
[1736522058156,0.216175,92518.0,92494.0,0.216228]
[1736522058397,0.216175,92518.0,92488.0,0.216244]
[1736522058398,0.216176,92517.0,92495.0,0.10429976]
[1736522058690,0.15,92529.0,92497.0,0.216223]
[1736522058896,0.15,92529.0,92498.0,0.10429976]
[1736522058897,0.216162,92524.0,92498.0,0.10429976]
[1736522059104,0.26743004,92510.0,92498.0,0.10429976]
[1736522059308,0.216188,92512.0,92498.0,0.10429976]
[1736522059509,0.216188,92512.0,92499.0,0.01042998]
[1736522059721,0.216188,92512.0,92499.0,0.11472974]
[1736522060154,0.26743004,92510.0,92477.0,0.0474]
[1736522060377,0.26743004,92510.0,92478.0,0.10429976]
[1736522060603,0.239136,92534.0,92478.0,0.10429976]
[1736522060604,0.26743004,92500.0,92478.0,0.10429976]
[1736522060814,0.26743004,92500.0,92454.0,1.5]
[1736522060815,0.26743004,92488.0,92446.0,0.216342]
[1736522061019,0.10429976,92487.0,92447.0,0.10429976]
[1736522061270,0.21628,92473.0,92452.0,0.216326]
[1736522061479,0.21628,92473.0,92448.0,0.01151146]
[1736522061480,0.216295,92467.0,92448.0,0.01042998]
[1736522061691,0.1252,92499.0,92449.0,0.10538134]
[1736522061942,0.01496,92496.0,92452.0,0.10429976]
[1736522062191,0.216253,92484.0,92463.0,0.216302]
[1736522062395,0.01496,92496.0,92464.0,0.10429976]
[1736522062396,0.216245,92488.0,92464.0,0.10429976]
[1736522062602,0.216232,92493.0,92470.0,0.216284]
[1736522062804,0.216232,92493.0,92453.0,0.01266246]
[1736522062805,0.216221,92498.0,92471.0,0.10538104]
[1736522063013,0.0829,92519.0,92472.0,0.10429976]
[1736522063151,0.0829,92519.0,92484.0,0.216252]
[1736522063360,0.26743004,92510.0,92485.0,0.10429976]
[1736522063560,0.10429976,92518.0,92486.0,0.216248]
[1736522063561,0.26743004,92500.0,92486.0,0.216248]
[1736522063763,0.216212,92502.0,92487.0,0.10429976]
[1736522063963,0.26743004,92510.0,92477.0,0.216267]
[1736522064217,0.26743004,92500.0,92479.0,0.216265]
[1736522064407,0.023,92517.0,92483.0,0.216254]
[1736522064408,0.216218,92499.0,92483.0,0.216254]
[1736522064585,0.216218,92499.0,92484.0,0.10429976]
[1736522064782,0.216214,92501.0,92485.0,0.216251]
[1736522064993,0.216214,92501.0,92471.0,0.0463]
[1736522064994,0.00316742,92519.0,92486.0,0.1]
[1736522065186,0.143291,92575.0,92501.0,0.26743004]
[1736522065187,0.1,92566.0,92501.0,0.26743004]
[1736522065393,0.11925976,92563.0,92515.0,0.21618]
[1736522065602,0.11925976,92563.0,92527.0,0.216153]
[1736522065801,0.11925976,92563.0,92529.0,0.216148]
[1736522066171,0.21607,92563.0,92532.0,0.216141]
[1736522066376,0.0001708,92564.0,92540.0,0.26743004]
[1736522066590,0.0001708,92564.0,92551.0,0.10429976]
[1736522066789,0.0001708,92564.0,92559.0,0.216077]
[1736522067029,0.0001708,92564.0,92560.0,0.10537998]
[1736522067243,0.004327,92613.0,92562.0,0.10429976]
[1736522067458,0.01496,92619.0,92590.0,0.216005]
[1736522067675,0.215962,92609.0,92591.0,0.10429976]
[1736522067886,0.34673004,92620.0,92583.0,0.21602]
[1736522068067,0.21604,92576.0,92559.0,0.005]
[1736522068346,0.216027,92581.0,92560.0,0.10429976]
[1736522068560,0.216055,92569.0,92554.0,0.216089]
[1736522068778,0.01496,92586.0,92541.0,0.216119]
[1736522068993,0.216055,92569.0,92555.0,0.0056659]
[1736522069169,0.26743004,92580.0,92548.0,0.216103]
[1736522069415,0.26743004,92580.0,92534.0,0.0486]
[1736522069416,0.216081,92558.0,92556.0,0.00471922]
[1736522069625,0.216095,92552.0,92536.0,0.21613]
[1736522069836,0.216095,92552.0,92537.0,0.10429976]
[1736522070102,0.216081,92558.0,92538.0,0.216127]
[1736522070300,0.216064,92566.0,92540.0,0.216122]
[1736522070517,0.216066,92564.0,92547.0,0.216105]
[1736522070736,0.15,92559.0,92541.0,0.00407538]
[1736522070944,0.216118,92542.0,92493.0,0.0471]
[1736522071161,0.26743004,92540.0,92495.0,0.10429976]
[1736522071393,0.216125,92539.0,92497.0,0.216223]
[1736522071607,0.26743004,92560.0,92506.0,0.10429976]
[1736522071842,0.01496,92557.0,92535.0,0.216133]
[1736522072050,0.01496,92557.0,92514.0,0.10429976]
[1736522072051,0.216097,92551.0,92514.0,0.10429976]
[1736522072321,0.216125,92539.0,92515.0,0.10429976]
[1736522072515,0.216128,92538.0,92515.0,0.10911573]
[1736522072729,0.216139,92533.0,92516.0,0.00108074]
[1736522072937,0.216139,92533.0,92515.0,0.32529473]
[1736522072938,0.26743004,92540.0,92517.0,0.01517491]
[1736522073122,0.26743004,92540.0,92517.0,0.00412393]
[1736522073372,0.216151,92528.0,92509.0,0.216194]
[1736522073581,0.432302,92528.0,92514.0,0.001]
[1736522073788,0.26743004,92540.0,92514.0,0.001]
[1736522074043,0.26743004,92530.0,92515.0,0.00412798]
[1736522074205,0.216165,92522.0,92515.0,0.00412798]
[1736522074431,0.00742497,92551.0,92493.0,0.0471]
[1736522074556,0.009,92540.0,92517.0,0.001]
[1736522074757,0.009,92540.0,92518.0,0.10538059]
[1736522074959,0.009,92540.0,92533.0,0.216137]
[1736522075294,0.009,92540.0,92538.0,0.216126]
[1736522075498,0.009,92540.0,92539.0,0.10429976]
[1736522075759,0.26743004,92580.0,92565.0,0.216063]
[1736522075922,0.26743004,92580.0,92566.0,0.10429976]
[1736522076156,0.26743004,92580.0,92566.0,0.10993452]
[1736522076384,0.26743004,92580.0,92566.0,0.00563476]
[1736522076563,0.216052,92570.0,92566.0,0.00563476]
[1736522076811,0.21607,92563.0,92545.0,0.21611]
[1736522077041,0.15,92590.0,92535.0,0.216133]
[1736522077042,0.26743004,92558.0,92535.0,0.216133]
[1736522077269,0.216066,92564.0,92547.0,0.216106]
[1736522077465,0.26743004,92570.0,92566.0,0.001]
[1736522077605,0.216046,92573.0,92552.0,0.00108036]
[1736522077812,0.26743004,92570.0,92553.0,0.10429976]
[1736522078011,0.26743004,92580.0,92553.0,0.10902606]
[1736522078374,0.0001708,92582.0,92568.0,0.216057]
[1736522078584,0.0001708,92582.0,92569.0,0.10429976]
[1736522078766,0.216046,92573.0,92569.0,0.00468856]
[1736522078991,0.26743004,92579.0,92556.0,0.43217]
[1736522079135,0.0001708,92582.0,92569.0,0.10429976]
[1736522079339,0.0001708,92582.0,92558.0,0.21608]
[1736522079340,0.26743004,92570.0,92558.0,0.21608]
[1736522079544,0.26743004,92570.0,92559.0,0.10429976]
[1736522079746,0.26743004,92570.0,92569.0,0.001]
[1736522079948,0.26743004,92580.0,92569.0,0.10429976]
[1736522080153,0.216027,92581.0,92569.0,0.32025452]
[1736522080396,0.26743004,92580.0,92570.0,0.00644324]
[1736522080820,0.21605,92571.0,92570.0,0.00644324]
[1736522081254,0.21605,92571.0,92569.0,0.002]
[1736522081593,0.15,92570.0,92569.0,0.002]
[1736522081794,0.32034976,92571.0,92569.0,0.002]
[1736522082046,0.15,92570.0,92569.0,0.002]
[1736522082288,0.216134,92535.0,92496.0,0.082]
[1736522082539,0.216127,92538.0,92522.0,0.216164]
[1736522082777,0.26743004,92560.0,92523.0,0.10538043]
[1736522083040,0.10429976,92560.0,92524.0,0.1148378]
[1736522083292,0.10429976,92560.0,92444.0,0.021821]
[1736522083293,0.1,92487.0,92444.0,0.021821]